[Event "WGM Marmaris Cleopatra 2018"]
[Site "Mentese Mugla"]
[Date "2018.10.29"]
[Round "8.7"]
[White "Tsatsalashvili, Keti"]
[Black "Soyunlu, Narmin"]
[Result "1-0"]
[ECO "E53"]
[WhiteElo "2330"]
[BlackElo "2014"]
[Annotator "NA"]
[PlyCount "67"]
[EventDate "2018.10.26"]
[EventType "tourn"]
[EventCountry "TUR"]
[SourceTitle "playchess.com"]
[Source "ChessBase"]
[SourceQuality "1"]
[TimeControl "5400+30"]

1. d4 {[%emt 0:00:30]} Nf6 {[%emt 0:01:30]} 2. c4 {[%emt 0:00:00]} e6 {[%emt 0:00:30]} 3. Nc3 {[%emt 0:00:00]} Bb4 {[%emt 0:00:00]} 4. e3 {[%emt 0:00:00]} O-O {[%emt 0:00:00]} 5. Bd3 {[%emt 0:01:00]} d5 {[%emt 0:00:30]} 6. Nf3 {[%emt 0:00:30]} c5 {[%emt 0:00:00]} 7. a3 {[%emt 0:00:30]} Bxc3+ {[%emt 0:00:00]} 8. bxc3 {[%emt 0:00:00]} dxc4 {[%emt 0:04:30]} 9. Bxc4 {[%emt 0:00:00]} Qc7 {[%emt 0:00:00]} 10. Be2 {[%emt 0:01:30] LiveBook: 46 Games} Nbd7 {[%emt 0:11:00] E53: Nimzo-Indian: Rubinstein: Main Line (4...0-0 5 Nf3 d5 6 Bd3 c5 7 0-0)} (10... b6 11. O-O Bb7 12. Bb2 Nbd7 13. h3 Rfd8 14. a4 Rac8 15. a5 h6 16. axb6 axb6 17. Ra7 Ra8 18. Rxa8 Rxa8 19. c4 Rc8 20. Qb3 Qc6 {½-½ (51) Nepomniachtchi,I (2768)-Inarkiev,E (2690) Satka 2018}) 11. O-O {[%emt 0:00:30]} e5 {[%emt 0:00:30]} 12. a4 $146 {[%emt 0:03:30]} ({Predecessor:} 12. Bb2 b6 13. dxe5 Nxe5 14. c4 Ned7 15. Qd3 Bb7 16. Rfd1 Rfd8 17. Qf5 Qc6 18. Qg5 {1-0 (33) Spacek,P (2423)-Hosek,M (2302) Czechia 2008}) 12... e4 {[%emt 0:06:30]} 13. Nd2 {[%emt 0:00:30]} b6 {[%emt 0:01:30]} 14. a5 {[%emt 0:01:30]} Bb7 {[%emt 0:02:30]} 15. Bb2 {[%emt 0:01:30]} Rfd8 {[%emt 0:07:30]} 16. Qb3 {[%emt 0:00:30]} bxa5 {[%emt 0:17:30]} (16... cxd4 $142 17. cxd4 Bd5) 17. Qa3 {[%emt 0:05:30]} Nb6 {[%emt 0:10:30]} 18. Qxa5 {[%emt 0:01:30]} Rd5 {[%emt 0:03:30]} 19. c4 {[%emt 0:02:30]} Rg5 {[%emt 0:06:30]} 20. d5 {[%emt 0:01:30]} Ng4 {[%emt 0:02:30]} 21. Bxg4 {[%emt 0:01:30]} Rxg4 {[%emt 0:00:30]} 22. h3 {[%emt 0:01:30]} Rh4 {[%emt 0:00:30]} 23. Qc3 {[%emt 0:04:30]} f6 {[%emt 0:02:30]} 24. Qc2 {[%emt 0:03:30]} Re8 {[%emt 0:06:03]} 25. Rxa7 {[%emt 0:01:30]} Nc8 {[%emt 0:00:05]} 26. Qa4 $18 {[%emt 0:07:30]} Re7 {[%emt 0:01:00]} 27. Ra5 {[%emt 0:00:30]} Nb6 {[%emt 0:08:54]} 28. Qb5 {[%emt 0:05:30]} Nd7 {[%emt 0:00:23]} 29. Rd1 {[%emt 0:10:30]} Bc8 {[%emt 0:04:08]} 30. Nf1 {[%emt 0:00:30]} Qd6 {[%emt 0:01:05]} 31. Qc6 {[%emt 0:02:30]} Qxc6 {[%emt 0:02:45]} 32. dxc6 {[%emt 0:00:00]} Nb6 {[%emt 0:00:00]} 33. Rb5 {[%emt 0:00:00]} Nxc4 {[%emt 0:00:55]} 34. Rd8+ {[%emt 0:00:30]} 1-0

[Event "WGM Marmaris Cleopatra 2018"]
[Site "Mentese Mugla"]
[Date "2018.10.29"]
[Round "8.8"]
[White "Tereladze, Sopiko"]
[Black "Arda, Cagil Irmak"]
[Result "1/2-1/2"]
[ECO "D02"]
[WhiteElo "2161"]
[BlackElo "2096"]
[Annotator "NA"]
[PlyCount "65"]
[EventDate "2018.10.26"]
[EventType "tourn"]
[EventCountry "TUR"]
[SourceTitle "playchess.com"]
[Source "ChessBase"]
[SourceQuality "1"]
[TimeControl "5400+30"]

1. d4 {[%emt 0:01:30]} Nf6 {[%emt 0:00:30]} 2. Nf3 {[%emt 0:00:00]} d5 {[%emt 0:00:00]} 3. Bf4 {[%emt 0:00:00]} c5 {[%emt 0:00:00]} 4. e3 {[%emt 0:00:30]} Nc6 {[%emt 0:00:30]} 5. Nc3 {[%emt 0:01:30]} Bg4 {[%emt 0:04:30]} 6. Be2 {[%emt 0:04:30]} e6 {[%emt 0:03:30]} 7. O-O {[%emt 0:08:30] LiveBook: 20 Games} Be7 {[%emt 0:03:30]} 8. Ne5 {[%emt 0:02:30]} cxd4 {[%emt 0:07:30]} 9. exd4 {[%emt 0:00:30]} Bxe2 {[%emt 0:00:30]} 10. Nxe2 {[%emt 0:00:30]} Rc8 {[%emt 0:00:30]} 11. c3 {[%emt 0:00:30]} O-O {[%emt 0:02:30]} 12. Ng3 {[%emt 0:01:30]} b5 {[%emt 0:03:30]} 13. a3 {[%emt 0:02:30]} a5 {[%emt 0:01:30]} 14. Re1 $11 {[%emt 0:09:30]} g6 {[%emt 0:08:30]} 15. Bh6 {[%emt 0:01:30]} Re8 {[%emt 0:00:00]} 16. Qe2 {[%emt 0:00:30]} Qb6 {[%emt 0:06:00]} 17. Nxf7 {[%emt 0:08:30]} Nxd4 {[%emt 0:00:30]} 18. cxd4 {[%emt 0:00:00]} Kxf7 {[%emt 0:00:00]} 19. Rad1 {[%emt 0:01:00]} Rc6 {[%emt 0:05:00]} 20. Nf1 {[%emt 0:00:30]} Kg8 {[%emt 0:03:30]} 21. Ne3 {[%emt 0:01:30]} Bf8 {[%emt 0:02:30]} 22. Bxf8 {[%emt 0:06:30]} Rxf8 {[%emt 0:00:30]} 23. Ng4 {[%emt 0:00:30]} Nxg4 {[%emt 0:00:30]} 24. Qxg4 {[%emt 0:00:00]} Rf5 {[%emt 0:00:30]} 25. Re2 {[%emt 0:02:00]} Qc7 {[%emt 0:02:30]} 26. h3 {[%emt 0:07:30]} Qf4 {[%emt 0:08:30]} 27. Qxf4 {[%emt 0:00:30]} Rxf4 {[%emt 0:00:30]} 28. Rd3 {[%emt 0:02:30]} b4 {[%emt 0:05:30]} 29. g3 {[%emt 0:03:30]} Rf8 {[%emt 0:02:30]} 30. Kg2 {[%emt 0:00:00]} Rb8 {[%emt 0:01:30]} 31. axb4 {[%emt 0:01:00]} axb4 {[%emt 0:02:30]} 32. Kf3 {[%emt 0:00:30]} Rf8+ {[%emt 0:02:30]} 33. Ke3 {[%emt 0:00:30]} 1/2-1/2

[Event "WGM Marmaris Cleopatra 2018"]
[Site "Mentese Mugla"]
[Date "2018.10.29"]
[Round "8.9"]
[White "Abdulla, Khayala"]
[Black "Okuyaz, Duru"]
[Result "1-0"]
[ECO "C13"]
[WhiteElo "2168"]
[BlackElo "2108"]
[Annotator "NA"]
[PlyCount "59"]
[EventDate "2018.10.26"]
[EventType "tourn"]
[EventCountry "TUR"]
[SourceTitle "playchess.com"]
[Source "ChessBase"]
[SourceQuality "1"]
[TimeControl "5400+30"]

1. e4 {[%emt 0:00:30]} e6 {[%emt 0:00:30]} 2. d4 {[%emt 0:00:00]} d5 {[%emt 0:00:30]} 3. Nc3 {[%emt 0:00:00]} Nf6 {[%emt 0:00:30]} 4. Bg5 {[%emt 0:00:00]} dxe4 {[%emt 0:00:00]} 5. Nxe4 {[%emt 0:00:00]} Be7 {[%emt 0:00:00]} 6. Bxf6 {[%emt 0:00:30]} gxf6 {[%emt 0:00:30]} 7. Nf3 {[%emt 0:00:00]} f5 {[%emt 0:00:30]} 8. Nc3 {[%emt 0:00:00]} a6 {[%emt 0:01:30] C13: French: Classical System: 4 Bg5 Be7, Alekhine-Chatard Attack} 9. g3 {[%emt 0:01:30]} (9. Qd2 b5 10. O-O-O b4 11. Na4 Qd5 12. b3 Bd7 13. Bc4 Qd6 14. d5 e5 15. Rhe1 e4 16. Nd4 {1-0 (40) Carlsen,M (2832)-Grischuk,A (2750) chess.com INT 2017}) 9... b5 {[%emt 0:00:30]} 10. Bg2 {[%emt 0:00:30]} Bb7 {[%emt 0:00:30]} 11. O-O {[%emt 0:00:30]} O-O {[%emt 0:00:30] LiveBook: 58 Games} 12. Ne5 {[%emt 0:00:30]} Bxg2 {[%emt 0:00:00]} 13. Kxg2 {[%emt 0:00:00]} Ra7 {[%emt 0:01:00]} 14. Re1 {[%emt 0:04:00]} b4 $146 {[%emt 0:06:30]} ({Besser ist} 14... Bf6 $11) ({Predecessor:} 14... Qd6 15. Qh5 Nd7 16. Nxd7 Qxd7 {1-0 (40) Can,I (2265)-Okuyaz,D (2238) Djenovici 2017}) 15. Na4 {[%emt 0:02:30]} Qe8 {[%emt 0:02:30]} 16. Nc5 {[%emt 0:03:30]} Nc6 {[%emt 0:01:30]} 17. Ned7 {[%emt 0:06:30]} Qa8 {[%emt 0:06:30]} 18. Nxf8 {[%emt 0:00:30]} Nxd4+ {[%emt 0:00:30]} 19. f3 {[%emt 0:00:30]} Bxc5 {[%emt 0:00:30]} 20. Nd7 {[%emt 0:00:30]} Qc6 {[%emt 0:00:30]} 21. Ne5 {[%emt 0:01:30]} Qd6 {[%emt 0:00:30]} 22. Qd3 {[%emt 0:07:30]} Rb7 {[%emt 0:01:30]} 23. Nc4 {[%emt 0:01:30]} Qe7 {[%emt 0:04:30]} 24. Rad1 $18 {[%emt 0:03:30]} Rb8 {[%emt 0:01:30]} 25. c3 {[%emt 0:00:30]} bxc3 {[%emt 0:00:30]} 26. bxc3 {[%emt 0:00:30]} Nb5 {[%emt 0:00:30]} 27. Ne5 {[%emt 0:01:30]} Qd6 {[%emt 0:00:30]} 28. Nd7 {[%emt 0:05:30]} Rc8 {[%emt 0:02:30]} 29. Qc4 {[%emt 0:00:30]} Bd4 {[%emt 0:00:30]} 30. a4 {[%emt 0:01:30]} 1-0

[Event "WGM Marmaris Cleopatra 2018"]
[Site "Mentese Mugla"]
[Date "2018.10.30"]
[Round "10.6"]
[White "Abdulla, Khayala"]
[Black "Ince, Safiye Oyku"]
[Result "1-0"]
[ECO "B44"]
[WhiteElo "2168"]
[BlackElo "1855"]
[Annotator "ChessBase"]
[PlyCount "73"]
[EventDate "2018.10.26"]
[EventType "tourn"]
[EventCountry "TUR"]
[SourceTitle "playchess.com"]
[Source "ChessBase"]
[SourceQuality "1"]
[TimeControl "5400+30"]

1. e4 {[%emt 0:00:30]} c5 {[%emt 0:00:30]} 2. Nf3 {[%emt 0:00:00]} e6 {[%emt 0:00:00]} 3. d4 {[%emt 0:00:00]} cxd4 {[%emt 0:00:00]} 4. Nxd4 {[%emt 0:00:30]} Nc6 {[%emt 0:00:00]} 5. Nb5 {[%emt 0:00:00]} d6 {[%emt 0:00:00]} 6. c4 {[%emt 0:00:00]} a6 {[%emt 0:00:30]} 7. N5a3 {[%emt 0:00:30]} Nf6 {[%emt 0:00:00]} 8. Nc3 {[%emt 0:00:30]} Qc7 {[%emt 0:00:00]} 9. Be2 {[%emt 0:00:30]} Be7 {[%emt 0:00:30]} 10. O-O {[%emt 0:00:30]} b6 {[%emt 0:00:00]} 11. Be3 {[%emt 0:00:30]} Bb7 {[%emt 0:00:00]} 12. Rc1 {[%emt 0:01:30]} Ne5 {[%emt 0:00:30]} 13. f3 {[%emt 0:01:30]} O-O {[%emt 0:00:30]} 14. Qd2 {[%emt 0:01:30]} Rac8 {[%emt 0:03:30]} 15. Rfd1 {[%emt 0:03:30]} Ned7 {[%emt 0:03:30]} 16. Bf1 {[%emt 0:02:30]} Qb8 {[%emt 0:00:30]} 17. Kh1 {[%emt 0:06:30]} Qa8 {[%emt 0:01:30]} 18. Na4 {[%emt 0:02:30]} Qa7 {[%emt 0:04:30]} 19. Qb4 {[%emt 0:10:30]} a5 {[%emt 0:03:30]} 20. Qd2 {[%emt 0:01:30]} Bc6 {[%emt 0:06:30]} 21. Nc3 {[%emt 0:01:30]} Rfd8 {[%emt 0:01:30]} 22. Nab5 {[%emt 0:01:30]} Qb8 {[%emt 0:00:00]} 23. Bf4 {[%emt 0:07:30]} Ne5 {[%emt 0:05:00]} 24. Qf2 {[%emt 0:03:30]} Ng6 {[%emt 0:02:30]} 25. Be3 {[%emt 0:00:30]} Nd7 {[%emt 0:00:30]} 26. a3 {[%emt 0:01:30]} Re8 {[%emt 0:10:30]} 27. Rc2 {[%emt 0:03:30]} Nge5 {[%emt 0:01:30]} 28. b3 {[%emt 0:08:30]} Nc5 {[%emt 0:03:30]} 29. b4 {[%emt 0:00:30]} axb4 {[%emt 0:00:30]} 30. axb4 {[%emt 0:00:30]} Na6 {[%emt 0:00:30]} 31. Rb1 {[%emt 0:02:30]} Nd7 {[%emt 0:07:30]} 32. Ra2 {[%emt 0:02:30]} Bxb5 {[%emt 0:06:30]} 33. Nxb5 {[%emt 0:01:30]} Qb7 {[%emt 0:00:30]} 34. Qd2 {[%emt 0:03:30]} Ne5 {[%emt 0:03:30]} 35. Rba1 {[%emt 0:01:30]} Nb8 {[%emt 0:01:30]} 36. Ra7 {[%emt 0:02:30]} Qc6 {[%emt 0:00:00]} 37. Nd4 {[%emt 0:00:30]} 1-0

[Event "WGM Marmaris Cleopatra 2018"]
[Site "Mentese Mugla"]
[Date "2018.10.30"]
[Round "10.10"]
[White "Tereladze, Sopiko"]
[Black "Isgandarova, Khayala"]
[Result "1/2-1/2"]
[ECO "D36"]
[WhiteElo "2161"]
[BlackElo "2194"]
[Annotator "NA"]
[PlyCount "35"]
[EventDate "2018.10.26"]
[EventType "tourn"]
[EventCountry "TUR"]
[SourceTitle "playchess.com"]
[Source "ChessBase"]
[SourceQuality "1"]
[TimeControl "5400+30"]

1. d4 {[%emt 0:00:30]} d5 {[%emt 0:00:30]} 2. c4 {[%emt 0:00:00]} e6 {[%emt 0:00:00]} 3. cxd5 {[%emt 0:00:00]} exd5 {[%emt 0:00:00]} 4. Nc3 {[%emt 0:00:30]} Nf6 {[%emt 0:00:30]} 5. Nf3 {[%emt 0:00:00]} Bd6 {[%emt 0:00:00]} 6. Bg5 {[%emt 0:00:00]} c6 {[%emt 0:00:00]} 7. e3 {[%emt 0:00:00]} O-O {[%emt 0:00:00]} 8. Bd3 {[%emt 0:00:00]} Nbd7 {[%emt 0:00:00]} 9. O-O {[%emt 0:00:00]} h6 {[%emt 0:00:30]} 10. Bh4 {[%emt 0:00:00]} Qc7 {[%emt 0:00:00]} 11. Qc2 {[%emt 0:00:30]} a6 {[%emt 0:00:00]} 12. Rac1 {[%emt 0:01:30]} Re8 {[%emt 0:00:30]} 13. Rfe1 {[%emt 0:00:30]} Bf8 {[%emt 0:00:30]} 14. Bg3 {[%emt 0:00:30]} Bd6 {[%emt 0:00:30]} 15. Bh4 {[%emt 0:00:00]} Bf8 {[%emt 0:00:00]} 16. Bg3 {[%emt 0:00:00]} Bd6 {[%emt 0:00:00]} 17. Bh4 {[%emt 0:00:00]} Bf8 {[%emt 0:00:30]} 18. Bg3 {[%emt 0:00:00]} 1/2-1/2